bitfinex-derivatives/quotes_ETHF0:USTF0_20260123
["timestamp","ask_amount","ask_price","bid_price","bid_amount"]
[1769191505657,2.761962,2991.5,2989.4,2.37876598]
[1769191506158,2.761962,2991.5,2989.3,2.54878047]
[1769191506360,2.761962,2991.5,2989.4,0.16744]
[1769191506756,2.72989269,2991.2,2989.4,0.16744]
[1769191507263,2.72989269,2991.0,2989.3,0.00256449]
[1769191508158,0.00501554,2990.4,2989.4,0.16744]
[1769191508564,2.72989269,2991.5,2989.9,0.00501554]
[1769191509262,2.89722269,2991.5,2989.9,0.00501554]
[1769191510164,2.72989269,2991.5,2989.9,0.00501554]
[1769191510368,2.72989269,2991.5,2990.0,0.16741]
[1769191510663,2.72989269,2991.5,2990.1,0.16741]
[1769191511067,2.72989269,2992.0,2990.3,0.16739]
[1769191511261,2.72989269,2992.0,2990.4,0.16739]
[1769191513370,2.72989269,2992.0,2989.9,5.35723899]
[1769191513667,2.72989269,2991.8,2989.9,2.38378152]
[1769191513862,2.72989269,2991.6,2989.9,2.38378152]
[1769191514072,2.72989269,2991.4,2989.9,0.00501554]
[1769191514367,8.87089269,2991.4,2989.9,0.00501554]
[1769191514963,2.72989269,2991.3,2989.9,0.00501554]
[1769191515766,2.89723269,2991.3,2989.9,0.00501554]
[1769191515965,2.89723269,2991.3,2989.3,2.38133047]
[1769191517769,2.72989269,2991.3,2989.5,2.37876598]
[1769191518066,2.72989269,2991.3,2989.8,0.16742]
[1769191518563,2.72989269,2991.8,2989.7,2.68989097]
[1769191518756,8.87589269,2991.8,2990.2,0.1674]
[1769191519359,2.72989269,2991.7,2990.2,0.1674]
[1769191520265,2.72989269,2991.5,2989.8,2.37876598]
[1769191520569,2.72989269,2991.3,2989.6,0.16743]
[1769191522469,6.147,2991.2,2989.7,0.16743]
[1769191522658,2.72989269,2991.8,2989.7,2.68989097]
[1769191522865,2.72989269,2991.8,2990.3,0.16739]
[1769191523067,2.72989269,2991.8,2990.5,0.16738]
[1769191523268,2.72989269,2992.3,2990.4,2.3829822]
[1769191523562,0.00501554,2991.3,2990.4,2.3829822]
[1769191523765,2.72989269,2992.3,2990.5,2.3829822]
[1769191523969,2.72989269,2992.3,2991.1,0.00501554]
[1769191526666,0.00286711,2992.4,2991.1,0.00501554]
[1769191527181,0.00286711,2992.4,2991.3,0.16734]
[1769191527967,0.00286711,2992.4,2991.4,0.16733]
[1769191528173,2.72989269,2993.1,2991.4,0.17066228]
[1769191528873,2.72989269,2992.9,2991.4,0.17066228]
[1769191529175,2.73379064,2992.9,2991.4,0.17066228]
[1769191529873,2.73379064,2992.9,2991.1,0.00501554]
[1769191530063,2.72989269,2992.6,2991.1,0.00501554]
[1769191530973,2.72989269,2992.6,2991.1,0.0082813]
[1769191531169,5.53189269,2992.6,2991.1,0.0082813]
[1769191531376,2.72989269,2992.5,2991.1,0.0082813]
[1769191531870,4.74788525,2992.4,2991.1,0.0082813]
[1769191532078,8.09488525,2992.4,2991.1,0.0082813]
[1769191532379,1.94588525,2992.3,2991.1,0.0082813]
[1769191532780,4.75288525,2992.3,2991.1,0.0082813]
[1769191533279,4.75488525,2992.3,2991.1,0.0082813]
[1769191533875,5.29288525,2992.8,2991.1,0.0082813]
[1769191534080,1.94588525,2992.7,2991.1,0.0082813]
[1769191534979,1.94588525,2992.7,2991.4,0.16733]
[1769191535681,0.00389795,2992.9,2991.4,0.16733]
[1769191538582,0.00389795,2992.9,2991.6,0.16732]
[1769191539081,1.9497832,2992.9,2991.1,0.0082813]
[1769191539281,1.94588525,2992.7,2991.1,0.0082813]
[1769191540482,2.11314525,2992.7,2991.1,0.0082813]
[1769191540879,8.10688525,2992.6,2991.1,0.0082813]
[1769191541180,1.94588525,2992.5,2991.1,0.0082813]
[1769191542378,0.649,2992.4,2990.1,2.97345747]
[1769191542580,0.649,2992.4,2989.4,1.97028046]
[1769191542581,1.71137818,2991.7,2989.5,0.16744]
[1769191543085,1.71137818,2991.5,2989.5,0.16744]
[1769191543284,2.191,2991.4,2989.5,0.16744]
[1769191543484,3.347,2991.3,2989.5,0.17054988]
[1769191543885,0.00501554,2990.7,2989.5,0.00310988]
[1769191544082,0.00780307,2990.7,2989.5,0.00310988]
[1769191546189,1.69545605,2990.1,2987.9,1.97028046]
[1769191546391,6.168,2990.0,2987.9,1.97028046]
[1769191546590,6.43476268,2990.0,2987.9,1.97028046]
[1769191547091,7.92402433,2990.0,2987.9,1.97359632]
[1769191547386,0.00780307,2990.7,2988.5,1.97028046]
[1769191547586,2.564,2990.4,2988.5,1.97028046]
[1769191547788,2.564,2990.4,2988.6,0.16749]
[1769191548090,1.4479922,2990.6,2988.6,0.16749]
[1769191548390,6.168,2990.5,2988.6,2.13777046]
[1769191548892,6.44158594,2990.5,2988.6,2.13777046]
[1769191549193,0.27358594,2990.5,2988.6,2.13777046]
[1769191549395,6.17,2990.4,2988.6,2.13777046]
[1769191550094,1.4479922,2990.6,2988.6,2.13777046]
[1769191550289,6.17,2990.5,2988.6,2.13777046]
[1769191550888,6.43799873,2990.5,2988.6,2.13777046]
[1769191551288,7.71209955,2990.5,2988.6,2.13777046]
[1769191552084,1.54209955,2990.5,2988.6,2.13777046]
[1769191552290,6.172,2990.4,2988.6,2.13777046]
[1769191553192,0.16738,2990.6,2988.8,1.97028046]
[1769191553394,3.348,2990.6,2989.0,2.13775046]
[1769191553590,0.00780307,2990.7,2989.2,1.97028046]
[1769191553993,0.00780307,2990.7,2989.2,2.43803908]
[1769191554392,0.00780307,2990.7,2989.6,2.43803908]
[1769191554593,0.00780307,2990.7,2989.7,2.43803908]
[1769191554793,0.00780307,2990.7,2989.7,1.97028046]
[1769191555298,0.00780307,2990.7,2989.7,2.43803908]
[1769191556097,0.00780307,2990.7,2989.8,0.46775862]
[1769191557487,0.00780307,2990.7,2989.9,0.46775862]
[1769191557691,0.00780307,2990.7,2989.8,0.46775862]
[1769191558194,0.00780307,2990.7,2990.0,0.46775862]
[1769191558499,0.00780307,2990.7,2990.0,0.00387249]
[1769191558693,0.00780307,2990.7,2990.1,0.46775862]
[1769191559195,0.00780307,2990.7,2990.2,0.46775862]
[1769191559396,0.00780307,2990.7,2990.1,0.46775862]
[1769191559596,5.208,2991.9,2990.6,0.46775862]
[1769191559794,5.208,2991.9,2990.3,1.97028046]
[1769191560004,5.208,2991.9,2990.2,0.1674]
[1769191560298,5.208,2991.9,2990.2,2.13768046]
[1769191560490,0.26431768,2991.9,2990.3,2.13767046]
[1769191561001,0.26431768,2991.9,2990.8,0.00501554]
[1769191561496,1.20007563,2991.9,2990.0,0.00387249]
[1769191561800,0.00501554,2991.6,2990.0,0.00387249]
[1769191561996,0.16733,2991.4,2990.0,0.00387249]
[1769191563001,0.00501554,2991.6,2990.4,1.52544445]
[1769191564290,0.00501554,2991.6,2990.0,0.00387249]
[1769191565698,0.00501554,2991.6,2990.1,1.52544445]
[1769191565891,0.00501554,2991.6,2990.3,1.52544445]
[1769191566399,0.00501554,2991.6,2990.5,1.52544445]
[1769191566596,0.00501554,2991.6,2990.7,1.52544445]
[1769191566797,0.00363662,2991.9,2990.9,1.78943132]
[1769191566991,0.00363662,2991.9,2990.9,1.3216727]
[1769191567192,0.00363662,2991.9,2991.0,1.78943132]
[1769191567392,1.29121344,2993.4,2991.2,1.3216727]
[1769191567393,3.348,2992.5,2991.2,1.3216727]
[1769191567701,0.27353525,2992.7,2991.2,1.3216727]
[1769191567902,6.166,2992.9,2991.2,1.3216727]
[1769191568399,6.17021718,2992.9,2991.2,1.3216727]
[1769191568799,6.17021718,2992.9,2991.2,1.4890127]
[1769191569806,2.833,2992.8,2991.4,1.3216727]
[1769191571600,2.833,2992.8,2991.3,0.16734]
[1769191571806,1.28944704,2992.2,2990.8,0.00501554]
[1769191572203,1.28944704,2992.2,2990.8,1.32668824]
[1769191572806,1.28944704,2992.7,2991.0,1.3216727]
[1769191573002,6.195,2992.6,2991.1,1.3216727]
[1769191573298,2.848,2992.5,2991.1,1.3216727]
[1769191573706,2.848,2992.5,2991.2,1.3216727]
[1769191573901,2.848,2992.5,2991.2,1.78943132]
[1769191574103,2.848,2992.5,2991.4,1.3216727]
[1769191574398,2.848,2992.7,2991.4,1.3216727]
[1769191574901,0.00421718,2992.9,2991.4,1.3216727]
[1769191575103,2.851,2992.8,2991.4,1.3216727]
[1769191576103,2.851,2992.8,2991.5,1.3216727]
[1769191576303,2.862,2992.8,2991.7,1.3216727]
[1769191576704,2.862,2992.8,2991.7,1.78943132]
[1769191577209,0.00421718,2992.9,2991.7,1.78943132]
[1769191577413,2.20121718,2992.9,2991.8,1.3216727]
[1769191578407,0.00421718,2992.9,2991.8,1.78943132]
[1769191578608,0.00421718,2992.9,2992.0,1.78943132]
[1769191578809,3.5142,2993.8,2992.1,1.3216727]
[1769191579010,2.874,2993.5,2992.1,1.3216727]
[1769191579308,2.874,2993.6,2992.3,1.3216727]
[1769191579817,2.874,2993.6,2992.5,1.32668824]
[1769191580110,2.87829147,2993.6,2992.5,1.32668824]
[1769191580305,2.87829147,2993.6,2992.5,1.79444686]
[1769191580804,1.28944704,2993.4,2992.3,0.0024884]
[1769191581004,1.28944704,2993.4,2991.5,1.3216727]
[1769191581207,0.00501554,2993.3,2991.7,1.3216727]
[1769191581909,0.00501554,2993.3,2991.7,1.32562927]
[1769191582706,0.00501554,2993.3,2992.2,1.3216727]
[1769191583213,0.00501554,2993.3,2991.7,0.00395657]
[1769191583214,0.00501554,2993.3,2992.5,1.78943132]
[1769191583411,0.00501554,2993.3,2992.5,1.3216727]
[1769191583610,0.00501554,2993.3,2992.7,0.46775862]
[1769191584111,0.00429147,2993.6,2993.0,1.3216727]
[1769191584902,1.28944704,2994.4,2993.2,0.46775862]
[1769191585107,2.887,2994.3,2993.1,1.3216727]
[1769191586006,2.88978159,2994.3,2993.1,1.3216727]
[1769191586410,1.45664704,2993.9,2992.6,1.32668824]
[1769191587514,2.893,2993.8,2992.6,1.32668824]
[1769191587916,2.893,2993.8,2992.7,1.3216727]
[1769191588510,2.896,2993.8,2992.8,1.3216727]
[1769191589117,2.896,2993.8,2992.9,0.46775862]
[1769191590407,0.16718,2994.2,2993.0,1.3216727]
[1769191590612,2.908,2994.1,2993.0,1.3216727]
[1769191590813,0.16718,2994.2,2993.2,1.3216727]
[1769191591113,2.909,2994.2,2993.2,1.3216727]
[1769191591313,2.909,2994.2,2993.2,1.78943132]
[1769191592306,2.909,2994.2,2993.2,1.3216727]
[1769191592512,2.909,2994.2,2993.2,1.78943132]
[1769191592712,2.909,2994.2,2993.2,1.3216727]
[1769191593218,2.909,2994.2,2993.3,1.55559143]
[1769191593514,0.00278159,2994.3,2993.3,1.08783281]
[1769191593725,0.00278159,2994.3,2993.4,1.55902158]
[1769191594021,2.911,2994.8,2993.7,1.09126296]
[1769191594217,2.911,2994.8,2993.2,1.09126296]
[1769191594218,4.46243169,2994.8,2993.2,1.09126296]
[1769191594421,1.28944704,2994.3,2993.2,1.09126296]
[1769191594723,0.16716,2994.6,2993.2,1.09126296]
[1769191594920,0.00281361,2994.6,2993.6,1.09114266]
[1769191595520,0.00281361,2994.6,2993.7,1.56041356]
[1769191595723,0.00281361,2994.6,2993.7,1.09265494]
[1769191595921,0.00281361,2994.6,2994.1,1.09265494]
[1769191596226,0.00281361,2994.6,2994.1,1.09652533]
[1769191596426,0.00281361,2994.6,2994.2,0.46775862]
[1769191596621,0.00281361,2994.6,2994.1,0.00387039]
[1769191596922,0.00281361,2994.6,2993.6,1.09252133]
[1769191597124,0.00281361,2994.6,2993.7,0.46775862]
[1769191597424,0.00281361,2994.6,2994.1,0.00501554]
[1769191597828,0.00281361,2994.6,2994.1,0.00892284]
[1769191598823,0.00281361,2994.6,2994.1,1.08845908]
[1769191599029,0.00281361,2994.6,2994.2,0.46775862]
[1769191599829,0.00281361,2994.6,2993.6,1.07737663]
[1769191600232,0.00281361,2994.6,2993.8,0.46775862]
[1769191600625,0.00281361,2994.6,2993.9,0.46775862]
[1769191600930,0.00281361,2994.6,2993.9,0.00369589]
[1769191601123,0.00281361,2994.6,2993.9,0.47145451]
[1769191601523,0.00281361,2994.6,2994.0,0.46775862]
[1769191601727,0.00281361,2994.6,2994.3,1.07215249]
[1769191601925,0.00281361,2994.6,2994.4,0.46775862]
[1769191602229,0.00501554,2994.7,2994.5,0.46775862]
[1769191602526,2.941,2995.9,2994.7,0.24251428]
[1769191602725,2.941,2995.9,2994.6,1.07222009]
[1769191602926,0.16709,2995.8,2994.6,1.07222009]
[1769191603125,0.43971999,2995.8,2994.6,1.07222009]
[1769191603334,0.44350869,2995.8,2994.6,1.07222009]
[1769191603523,0.16711,2995.4,2994.2,0.00501554]
[1769191603934,3.51212,2995.3,2994.2,0.00501554]
[1769191604829,3.51212,2995.3,2994.2,1.08310239]
[1769191605031,0.16712,2995.3,2994.4,1.07808685]
[1769191605238,2.943,2995.2,2994.4,1.07808685]
[1769191605435,0.16712,2995.3,2994.5,0.24251428]
[1769191605631,0.16712,2995.3,2994.4,1.32060113]
[1769191606240,0.16712,2995.3,2994.4,1.07808685]
[1769191607347,0.16712,2995.3,2994.4,1.32060113]
[1769191607533,0.27641869,2995.8,2994.2,0.00501554]
[1769191607534,2.944,2995.2,2994.5,1.31710942]
[1769191607733,2.944,2995.2,2994.5,1.07459514]
[1769191608039,2.944,2995.2,2994.6,1.31710942]
[1769191608234,2.944,2995.2,2994.6,1.07459514]
[1769191608434,2.944,2995.2,2994.6,1.31710942]
[1769191608635,2.944,2995.2,2994.6,0.24251428]
[1769191608836,2.945,2995.2,2994.6,0.24251428]
[1769191609439,0.16711,2995.5,2994.2,1.07965399]
[1769191609638,6.291,2995.4,2994.2,1.07965399]
[1769191610134,0.17214554,2995.1,2993.9,0.00369589]
[1769191610337,0.17214554,2995.1,2993.9,1.07896584]
[1769191610641,0.17214554,2995.1,2994.1,1.07526995]
[1769191610642,6.292,2995.0,2994.1,1.07526995]
[1769191611034,0.17214554,2995.1,2994.1,1.07526995]
[1769191611235,6.294,2995.0,2994.1,1.07526995]
[1769191611831,3.12614554,2995.1,2994.3,0.24251428]
[1769191612044,3.12614554,2995.1,2994.3,1.0768866]
[1769191612238,3.12614554,2995.1,2994.5,0.24251428]
[1769191612635,3.12614554,2995.1,2994.6,0.24251428]
[1769191612942,3.12614554,2995.1,2994.6,1.07690766]
[1769191613143,3.12614554,2995.1,2994.7,0.24251428]
[1769191613736,0.00501554,2995.1,2994.8,0.24251428]
[1769191613938,0.00501554,2995.1,2995.0,0.24251428]
[1769191614239,0.00501554,2995.1,2995.0,0.11434753]
[1769191614440,0.00501554,2995.1,2993.9,0.00369589]
[1769191614645,1.29446258,2995.1,2993.9,0.00369589]
[1769191614942,1.46159258,2995.1,2993.9,0.00369589]
[1769191615241,2.967,2995.0,2993.9,0.00369589]
[1769191615636,4.80559258,2995.1,2993.9,0.00369589]
[1769191615637,0.00501554,2995.1,2993.9,0.00369589]
[1769191615830,0.00501554,2995.1,2994.0,1.04498265]
[1769191616231,0.00501554,2995.1,2994.0,1.21217265]
[1769191616431,2.968,2995.7,2994.4,1.04498265]
[1769191617139,0.0037887,2995.8,2994.4,1.04498265]
[1769191617530,3.344,2996.1,2994.6,1.04498265]
[1769191618438,3.344,2996.1,2994.8,1.04498265]
[1769191618635,0.16703,2996.8,2994.8,1.04498265]
[1769191618838,3.23792691,2996.9,2995.0,1.04498265]
[1769191619036,1.28944704,2996.7,2995.0,1.04498265]
[1769191619239,3.344,2997.3,2995.3,1.04498265]
[1769191619437,0.26380076,2997.3,2995.3,1.04498265]
[1769191619637,0.0031172,2997.3,2996.1,1.04498265]
[1769191619839,0.0031172,2997.3,2996.1,1.04835778]
[1769191620040,0.00500708,2996.6,2995.6,1.04498265]
[1769191620242,2.97100708,2996.6,2995.6,1.04498265]
[1769191620837,0.16706,2996.4,2994.4,1.04498265]
[1769191621043,0.16706,2996.4,2994.4,1.04762566]
[1769191621246,2.966,2996.3,2994.4,1.04762566]
[1769191621442,3.13306,2996.3,2994.4,1.04762566]
[1769191621743,0.16707,2996.2,2994.4,1.04762566]
[1769191622347,3.34800708,2996.6,2994.4,1.04762566]
[1769191622547,6.31400708,2996.6,2994.4,1.04762566]
[1769191622844,0.00500708,2996.6,2994.6,0.99356178]
[1769191623348,0.00500708,2996.6,2994.6,1.16071178]
[1769191623642,0.00500708,2996.6,2994.8,0.98379273]
[1769191624042,0.00500708,2996.6,2994.8,1.15093273]
[1769191624349,0.00500708,2996.6,2995.0,1.15092273]
[1769191624739,0.00500708,2996.6,2995.2,0.98406453]
[1769191628750,0.16705,2996.5,2995.2,0.98406453]
[1769191629157,0.16707,2996.2,2994.5,0.98375485]
[1769191629344,6.301,2996.1,2994.5,0.98375485]
[1769191630344,0.16707,2996.2,2994.5,0.98375485]
[1769191630644,6.302,2996.1,2994.5,0.98375485]
[1769191630843,6.46907,2996.1,2994.5,0.98375485]
[1769191631238,6.302,2996.1,2994.5,0.98375485]
[1769191631444,0.16708,2995.9,2994.5,0.98375485]
[1769191634750,0.16709,2995.7,2994.5,0.98375485]
[1769191634946,0.1671,2995.6,2994.5,0.98375485]
[1769191636251,6.47007,2996.1,2994.5,0.98375485]
[1769191636454,6.303,2996.1,2994.5,0.98375485]
[1769191636649,10.58849026,2996.1,2994.5,0.98375485]
[1769191637154,30.543,2996.0,2994.5,0.98375485]
[1769191637352,33.504,2996.0,2994.5,0.98375485]
[1769191637555,6.47108,2996.0,2994.5,0.98375485]
[1769191637755,6.304,2996.0,2994.5,0.98375485]
[1769191638347,0.16711,2995.5,2994.5,0.98375485]
[1769191639548,0.16711,2995.4,2994.5,0.98375485]
[1769191640355,2.97,2995.3,2994.5,0.98375485]
[1769191641054,6.59008,2995.9,2994.5,0.98375485]
[1769191641257,6.314,2995.8,2994.5,0.98375485]
[1769191641756,0.1671,2995.6,2994.5,0.98375485]
[1769191642151,9.766,2995.9,2994.5,0.98375485]
[1769191642455,12.745,2995.9,2994.5,0.98375485]
[1769191642757,9.406,2995.9,2994.5,0.98375485]
[1769191643454,9.413,2995.9,2994.5,0.98375485]
[1769191643845,6.423,2995.9,2994.5,0.98375485]
[1769191644650,3.16558308,2996.7,2994.5,0.98375485]
[1769191644651,0.16704,2996.7,2994.5,0.98375485]
[1769191645052,0.16704,2996.7,2994.5,1.15091485]
[1769191645253,6.338,2996.5,2994.5,1.15091485]
[1769191645454,0.16704,2996.7,2994.5,1.15091485]
[1769191645754,2.996,2996.5,2994.5,1.15091485]
[1769191646454,2.995,2996.4,2994.5,1.15091485]
[1769191647652,2.996,2996.3,2994.5,1.15091485]
[1769191647851,0.00500708,2996.6,2995.0,0.99552854]
[1769191648055,3.343,2997.2,2995.4,1.16263854]
[1769191648554,0.0031172,2997.3,2995.6,0.99317778]
[1769191648761,0.0031172,2997.3,2995.8,1.16025778]
[1769191649459,0.16695,2998.2,2995.8,1.16025778]
[1769191649657,2.217,2998.1,2995.8,1.16025778]
[1769191650057,2.217,2998.1,2995.8,0.99317778]
[1769191650262,0.16698,2997.8,2995.8,0.99317778]
[1769191650461,0.17117543,2997.8,2995.8,0.99317778]
[1769191650658,0.16699,2997.6,2995.8,0.99317778]
[1769191651060,0.16701,2997.3,2995.8,0.99317778]
[1769191651659,0.16704,2996.8,2995.5,0.00500708]
[1769191651860,6.334,2996.7,2995.5,0.00500708]
[1769191652956,3.343,2997.1,2995.5,0.00500708]
[1769191653352,0.167,2997.4,2995.5,0.00500708]
[1769191653561,6.502,2997.4,2995.5,0.00500708]
[1769191653757,6.502,2997.4,2995.6,0.56322013]
[1769191653966,0.167,2997.4,2995.6,0.56322013]
[1769191654466,6.505,2997.4,2995.6,0.56322013]
[1769191655459,6.338,2997.4,2995.6,0.56322013]
[1769191655765,0.16701,2997.3,2995.6,0.56322013]
[1769191655958,0.16702,2997.0,2995.6,0.56322013]
[1769191656555,3.01,2996.9,2995.6,0.56322013]
[1769191656759,0.16702,2997.0,2995.6,0.56322013]
[1769191656960,3.01,2996.9,2995.6,0.56322013]
[1769191657670,9.765,2997.3,2995.6,0.56322013]
[1769191657856,3.01,2997.1,2995.6,0.56322013]
[1769191658055,6.423,2997.3,2995.6,0.56322013]
[1769191658864,3.013,2997.3,2995.6,0.56322013]
[1769191659063,3.014,2997.3,2995.6,0.56322013]
[1769191660770,6.59,2997.5,2995.6,0.56322013]
[1769191661063,3.018,2997.4,2995.6,0.56322013]
[1769191661274,6.423,2997.5,2995.6,0.73032013]
[1769191661573,3.018,2997.4,2995.7,0.56322013]
[1769191661767,6.423,2997.5,2995.7,0.56322013]
[1769191662265,6.423,2997.5,2996.0,0.56322013]
[1769191662469,6.58999,2997.5,2996.0,0.56322013]
[1769191665371,6.423,2997.5,2996.2,0.56322013]
[1769191665571,0.26459447,2998.1,2996.2,0.56322013]
[1769191665768,0.10052894,2997.8,2996.1,0.16707]
[1769191665972,1.45394718,2997.3,2995.6,0.56322013]
[1769191666172,0.167,2997.3,2995.6,0.56322013]
[1769191666468,2.264,2997.2,2995.6,0.73032013]
[1769191666666,3.023,2997.6,2995.8,0.56322013]
[1769191666865,0.00419543,2997.8,2995.9,0.56322013]
[1769191667061,1.857,2997.7,2995.9,0.56322013]
[1769191668367,0.167,2997.4,2995.9,0.56322013]
[1769191669174,0.167,2997.3,2995.9,0.56322013]
[1769191669369,3.023,2997.2,2995.9,0.56322013]
[1769191669568,3.022,2997.4,2995.9,0.56322013]
[1769191671877,3.023,2997.3,2995.9,0.56322013]
[1769191672681,6.53201,2997.3,2995.6,0.56322013]
[1769191672872,0.16701,2997.2,2995.6,0.56322013]
[1769191676071,3.19101,2997.2,2995.6,0.56322013]
[1769191676674,0.16701,2997.2,2995.6,0.56322013]
[1769191677076,6.366,2997.3,2995.6,0.56322013]
[1769191677675,3.024,2997.4,2995.6,0.56322013]
[1769191678379,0.16702,2997.0,2995.6,0.56322013]
[1769191679078,6.02254308,2997.4,2995.6,0.56322013]
[1769191679079,0.16704,2996.7,2995.6,0.56322013]
[1769191679274,0.16705,2996.5,2995.1,0.56322013]
[1769191679583,0.00500708,2996.6,2995.1,0.56322013]
[1769191679780,0.16707,2996.1,2994.5,0.56322013]
[1769191679980,3.19207,2996.1,2994.5,0.56322013]
[1769191680278,0.16708,2996.0,2994.5,0.56322013]
[1769191680475,0.16711,2995.5,2994.4,0.00264301]
[1769191680678,0.17029972,2995.5,2994.4,0.00264301]
[1769191682377,5.526,2995.4,2994.4,0.00264301]
[1769191682772,0.00318972,2995.5,2994.4,0.49985403]
[1769191683379,3.342,2996.0,2994.4,0.49985403]
[1769191683673,3.342,2996.5,2994.4,0.49985403]
[1769191683980,3.342,2996.5,2994.6,0.49706382]
[1769191684670,3.51205554,2996.5,2994.6,0.49706382]
[1769191684877,0.17005554,2996.5,2994.6,0.49706382]
[1769191685177,0.17005554,2996.5,2994.4,0.00264301]
[1769191685178,0.00300554,2996.5,2994.7,0.49716965]
[1769191685381,0.00300554,2996.5,2995.0,0.49923357]
[1769191685982,0.00300554,2996.5,2995.3,0.49923357]
[1769191690886,1.45251544,2997.8,2995.4,0.4951659]
[1769191691074,3.342,2997.7,2995.6,0.00500708]
[1769191691276,3.342,2997.7,2995.7,0.49266236]
[1769191691983,0.00426527,2997.7,2995.7,0.49266236]
[1769191692381,0.00426527,2997.7,2995.8,0.49282753]
[1769191692583,0.00426527,2997.7,2996.0,0.49282753]
[1769191693186,0.00426527,2997.7,2996.1,0.16707]
[1769191693390,0.00426527,2997.7,2996.2,0.49282753]
[1769191695386,3.342,2998.8,2996.6,0.49567507]
[1769191695689,30.36544308,2999.2,2996.8,0.66270507]
[1769191695879,3.342,2999.1,2997.0,0.49567507]
[1769191696183,1.28553544,2998.9,2997.7,0.00500708]
[1769191696382,1.28974342,2998.9,2997.7,0.50466912]
[1769191697392,0.00420798,2998.9,2997.7,0.50466912]
[1769191697780,27.2,2999.6,2997.7,0.50466912]
[1769191697781,0.16685,3000.1,2997.7,0.50466912]
[1769191697986,1.28553544,2999.7,2997.7,0.50466912]
[1769191698191,0.16688,2999.6,2997.7,0.50466912]
[1769191698492,0.05805975,3000.0,2997.7,0.50466912]
[1769191698696,6.36,3000.0,2997.9,0.49498207]
[1769191698884,6.36240078,3000.0,2997.9,0.49498207]
[1769191699192,0.00240078,3000.0,2997.9,0.49498207]
[1769191699398,0.16676,3001.8,2999.2,0.49174795]
[1769191699586,0.16676,3001.8,2999.0,1.28553544]
[1769191699587,0.16676,3001.8,2999.4,0.49174795]
[1769191699786,1.28553544,3001.2,2999.4,0.49174795]
[1769191700489,1.28799549,3001.2,3000.0,0.00499867]
[1769191700696,1.45478549,3001.2,2999.4,0.49174795]
[1769191700892,1.28553544,3000.7,2998.2,0.49184084]
[1769191701093,5.84199867,3000.6,2998.2,0.49184084]
[1769191701588,3.34599867,3000.6,2998.2,0.49184084]
[1769191701793,0.00499867,3000.6,2998.2,0.49419912]
[1769191702184,0.00499867,3000.6,2998.2,0.66114912]
[1769191702388,0.00499867,3000.6,2998.3,0.48896041]
[1769191703494,0.00499867,3000.6,2998.5,0.48894922]
[1769191703695,0.00499867,3000.6,2998.7,0.65586922]
[1769191703897,0.00499867,3000.6,2998.8,0.48894922]
[1769191706199,0.00499867,3000.6,2998.9,0.49024056]
[1769191708003,1.28553544,3000.2,2998.9,0.49024056]
[1769191708305,0.00499867,3000.6,2998.9,0.49024056]
[1769191708502,6.345,3000.5,2998.9,0.49024056]
[1769191708700,0.00499867,3000.6,2998.9,0.49024056]
[1769191708896,6.345,3000.5,2998.9,0.49024056]
[1769191709906,3.339,3000.4,2998.9,0.49024056]
[1769191710806,0.17181867,3000.6,2998.9,0.49024056]
[1769191711200,3.51081867,3000.6,2998.9,0.49024056]
[1769191711912,1.28553544,3000.2,2998.3,0.49202356]
[1769191712203,0.00499867,3000.6,2998.3,0.49202356]
[1769191712507,0.17181867,3000.6,2998.4,0.49219828]
[1769191713806,0.00499867,3000.6,2998.4,0.49219828]
[1769191715204,0.16684,3000.3,2998.4,0.49219828]
[1769191715615,0.16685,3000.1,2998.4,0.49219828]
[1769191716106,1.28553544,3000.2,2998.4,0.49219828]
[1769191716513,0.16686,2999.9,2998.4,0.49219828]
[1769191718809,1.28553544,2999.6,2998.4,0.49219828]
[1769191719005,4.50114801,2999.5,2996.9,0.16702]
[1769191719311,2.997,2999.4,2996.9,1.45255544]
[1769191719506,6.337,2999.3,2996.9,1.45255544]
[1769191719711,30.198,2999.4,2997.0,0.16702]
[1769191719910,0.16688,2999.5,2997.3,0.167]
[1769191720107,3.339,2999.6,2997.5,0.16699]
[1769191720515,4.62453544,3000.0,2997.6,0.16698]
[1769191720715,3.339,3000.0,2997.7,0.16698]
[1769191721109,3.339,3000.0,2997.8,0.33914182]
[1769191721512,4.62453544,3000.0,2997.8,0.33914182]
[1769191721708,1.28553544,2999.5,2997.8,0.33914182]
[1769191721919,1.45241544,2999.5,2997.8,0.33914182]
[1769191724719,3.50588,2999.5,2997.8,0.33914182]
[1769191725620,4.79141544,2999.5,2997.8,0.33914182]
[1769191726719,0.00499867,2998.9,2997.8,0.33914182]
[1769191726920,0.00887192,2998.9,2997.8,0.33914182]
[1769191727111,0.3736845,2998.8,2997.3,0.00280197]
[1769191727318,1.28553544,2997.7,2995.1,0.16712]
[1769191727614,1.65921994,2997.2,2994.6,0.16715]
[1769191727814,1.28553544,2996.7,2994.2,1.28553544]
[1769191728019,1.28553544,2996.7,2994.5,3.339]
[1769191728214,1.28932458,2996.7,2994.5,3.342721]
[1769191729321,0.00500718,2995.9,2994.6,0.33914182]
[1769191729923,0.00378914,2996.7,2995.4,0.33914182]
[1769191732009,1.82613994,2998.9,2996.3,0.16706]
[1769191732220,1.92754129,2998.9,2996.5,0.33914182]
[1769191732416,0.3736845,2998.8,2996.7,0.33914182]
[1769191732615,27.2,2999.3,2996.7,0.33914182]
[1769191732616,0.1669,2999.2,2996.7,0.33914182]
[1769191732815,0.16691,2999.1,2997.4,0.00500718]
[1769191733121,0.16691,2999.0,2997.4,0.00500718]
[1769191733320,1.28553544,2998.9,2997.4,0.00500718]
[1769191734117,0.16691,2999.0,2997.4,0.00500718]
[1769191734425,0.16691,2999.0,2997.4,0.344149]
[1769191735018,0.00262863,2999.2,2997.4,0.344149]
[1769191735626,1.28553544,2999.0,2997.4,0.344149]
[1769191735821,0.00262863,2999.2,2997.4,0.344149]
[1769191737928,0.00262863,2999.2,2997.5,0.33914182]
[1769191738124,0.00262863,2999.2,2997.6,0.33914182]
[1769191738628,0.00262863,2999.2,2997.9,0.33914182]
[1769191739430,0.3736845,3000.5,2998.3,0.33914182]
[1769191739629,0.3736845,3000.5,2998.5,0.33914182]
[1769191739825,3.77415293,3000.6,2998.5,0.33914182]
[1769191740429,0.16683,3000.5,2999.2,0.00500718]
[1769191740628,1.28553544,2999.9,2998.1,3.34]
[1769191740829,0.00500718,2999.8,2998.1,3.67914182]
[1769191741322,0.00500718,2999.8,2998.1,0.33914182]
[1769191741719,1.28553544,2999.4,2998.1,0.00287624]